[Event "CZE Extraliga 2019-20"]
[Site "Czech Republic"]
[Date "2019.11.30"]
[Round "3.6"]
[White "Kanovsky, David"]
[Black "Rubes, Jan"]
[Result "1/2-1/2"]
[ECO "A36"]
[WhiteElo "2424"]
[BlackElo "2363"]
[Annotator "NA"]
[PlyCount "66"]
[EventDate "2019.09.15"]
[EventType "team-tourn"]
[EventCountry "CZE"]
[SourceTitle "playchess.com"]
[Source "ChessBase"]
[SourceQuality "1"]
[WhiteTeam "Poruba"]
[BlackTeam "Kromeriz"]
[TimeControl "40/5400+30:1800+30"]

1. c4 {[%emt 0:00:00]} c5 {[%emt 0:00:00]} 2. g3 {[%emt 0:00:00]} g6 {[%emt 0:00:00]} 3. Nc3 {[%emt 0:00:14]} Bg7 {[%emt 0:00:11]} 4. Bg2 {[%emt 0:00:07]} Nc6 {[%emt 0:00:06]} 5. a3 {[%emt 0:01:03]} e6 {[%emt 0:00:04]} 6. Rb1 {[%emt 0:01:10]} Nge7 {[%emt 0:00:24]} 7. b4 {[%emt 0:04:31]} cxb4 {[%emt 0:00:35]} 8. axb4 {[%emt 0:00:03]} O-O {[%emt 0:00:07]} 9. Nf3 {[%emt 0:02:35]} b6 {[%emt 0:04:37]} 10. O-O {[%emt 0:02:22]} Bb7 {[%emt 0:01:10]} 11. Nb5 {[%emt 0:14:10]} d5 {[%emt 0:10:52]} 12. c5 {[%emt 0:02:11]} bxc5 {[%emt 0:09:14]} 13. bxc5 {[%emt 0:00:07]} Ba6 {[%emt 0:02:23]} 14. Nd6 {[%emt 0:13:58]} Qa5 {[%emt 0:10:57]} 15. d4 {[%emt 0:00:54]} Rab8 {[%emt 0:02:03]} 16. Bb2 {[%emt 0:12:37]} Qa2 {[%emt 0:06:00]} 17. Re1 {[%emt 0:02:11]} Rxb2 {[%emt 0:17:27]} 18. Ra1 {[%emt 0:00:15]} Qb3 {[%emt 0:00:04]} 19. Qxb3 {[%emt 0:00:30]} Rxb3 {[%emt 0:00:04]} 20. Rxa6 {[%emt 0:00:05]} Nxd4 {[%emt 0:02:10]} 21. Rxa7 {[%emt 0:00:58]} Nxf3+ {[%emt 0:11:08]} 22. Bxf3 {[%emt 0:00:32]} Nc8 {[%emt 0:00:44]} 23. Rd7 {[%emt 0:12:11]} Nxd6 {[%emt 0:00:34]} 24. cxd6 {[%emt 0:00:07]} Be5 {[%emt 0:01:05]} 25. Rd1 {[%emt 0:05:57]} Rfb8 {[%emt 0:11:02]} 26. Kg2 {[%emt 0:03:48]} R3b7 {[%emt 0:02:08]} 27. Rxb7 {[%emt 0:01:22]} Rxb7 {[%emt 0:00:03]} 28. e4 {[%emt 0:00:30]} dxe4 {[%emt 0:00:31]} 29. Bxe4 {[%emt 0:00:12]} Rd7 {[%emt 0:00:04]} 30. Bc6 {[%emt 0:00:28]} Rxd6 {[%emt 0:00:04]} 31. Rxd6 {[%emt 0:00:04]} Bxd6 {[%emt 0:00:04]} 32. f4 {[%emt 0:00:38]} e5 {[%emt 0:00:35]} 33. fxe5 {[%emt 0:00:14]} Bxe5 {[%emt 0:00:04]} 1/2-1/2

[Event "CZE Extraliga 2019-20"]
[Site "Czech Republic"]
[Date "2019.11.30"]
[Round "3.6"]
[White "Vlasak, Lukas"]
[Black "Rydl, Jiri"]
[Result "1-0"]
[ECO "D00"]
[WhiteElo "2423"]
[BlackElo "2422"]
[Annotator "NA"]
[PlyCount "65"]
[EventDate "2019.09.15"]
[EventType "team-tourn"]
[EventCountry "CZE"]
[SourceTitle "playchess.com"]
[Source "ChessBase"]
[SourceQuality "1"]
[WhiteTeam "Turnov"]
[BlackTeam "Siesta Solution Unichess"]
[TimeControl "40/5400+30:1800+30"]

1. d4 {[%emt 0:00:00]} d5 {[%emt 0:00:00]} 2. Bf4 {[%emt 0:00:00]} Nf6 {[%emt 0:00:09]} 3. e3 {[%emt 0:00:00]} c5 {[%emt 0:01:53]} 4. dxc5 {[%emt 0:00:00]} Nc6 {[%emt 0:00:33]} 5. Bb5 {[%emt 0:00:05]} e6 {[%emt 0:01:54]} 6. b4 {[%emt 0:00:11]} a5 {[%emt 0:02:02]} 7. c3 {[%emt 0:00:11]} Bd7 {[%emt 0:00:37]} 8. Qb3 {[%emt 0:00:35]} Nh5 {[%emt 0:05:16]} 9. Ne2 {[%emt 0:00:11]} Nxf4 {[%emt 0:00:15]} 10. Nxf4 {[%emt 0:00:11]} Qf6 {[%emt 0:01:52]} 11. O-O {[%emt 0:05:00]} Be7 {[%emt 0:10:32]} 12. Nd2 {[%emt 0:02:58]} O-O {[%emt 0:00:14]} 13. a4 {[%emt 0:02:29]} Bd8 {[%emt 0:23:25]} 14. Rad1 {[%emt 0:18:59]} Bc7 {[%emt 0:01:27]} 15. Ne2 {[%emt 0:09:22]} Rad8 {[%emt 0:10:44]} 16. Ng3 {[%emt 0:05:29]} Qh6 {[%emt 0:10:05]} 17. Be2 {[%emt 0:04:31]} Bc8 {[%emt 0:04:52]} 18. b5 {[%emt 0:03:19]} Ne5 {[%emt 0:01:28]} 19. c4 {[%emt 0:01:14]} d4 {[%emt 0:08:24]} 20. exd4 {[%emt 0:16:49]} Rxd4 {[%emt 0:00:08]} 21. Qe3 {[%emt 0:00:54]} Qh4 {[%emt 0:05:37]} 22. f4 {[%emt 0:07:22]} Rd3 {[%emt 0:04:44]} 23. Bxd3 {[%emt 0:00:26]} Ng4 {[%emt 0:00:05]} 24. Nf3 {[%emt 0:00:05]} Qxg3 {[%emt 0:00:21]} 25. Qe4 {[%emt 0:00:15]} f5 {[%emt 0:00:41]} 26. hxg3 {[%emt 0:00:59]} fxe4 {[%emt 0:00:07]} 27. Bxe4 {[%emt 0:00:05]} Ne3 {[%emt 0:00:34]} 28. b6 {[%emt 0:01:18]} Bb8 {[%emt 0:00:07]} 29. Rfe1 {[%emt 0:01:05]} Nxd1 {[%emt 0:00:06]} 30. Rxd1 {[%emt 0:00:07]} h6 {[%emt 0:00:08]} 31. c6 {[%emt 0:01:00]} bxc6 {[%emt 0:00:11]} 32. Bxc6 {[%emt 0:00:05]} Ba6 {[%emt 0:00:16]} 33. Bb5 {[%emt 0:00:29]} 1-0

[Event "CZE Extraliga 2019-20"]
[Site "Czech Republic"]
[Date "2019.12.02"]
[Round "3.6"]
[White "Chytilek, Roman"]
[Black "Babula, Vlastimil"]
[Result "0-1"]
[ECO "E15"]
[WhiteElo "2339"]
[BlackElo "2572"]
[Annotator "ChessBase"]
[PlyCount "56"]
[EventDate "2019.09.15"]
[EventType "team-tourn"]
[EventCountry "CZE"]
[SourceTitle "playchess.com"]
[Source "ChessBase"]
[SourceQuality "1"]
[WhiteTeam "Duras"]
[BlackTeam "Novoborsky"]
[WhiteTeamCountry "CZE"]
[BlackTeamCountry "CZE"]
[TimeControl "40/5400+30:1800+30"]

1. d4 {[%emt 0:00:00]} Nf6 {[%emt 0:00:00]} 2. c4 {[%emt 0:00:00]} e6 {[%emt 0:00:05]} 3. Nf3 {[%emt 0:00:15]} b6 {[%emt 0:00:33]} 4. g3 {[%emt 0:00:35]} Ba6 {[%emt 0:00:38]} 5. b3 {[%emt 0:00:45]} Bb4+ {[%emt 0:01:02]} 6. Bd2 {[%emt 0:00:48]} Be7 {[%emt 0:00:28]} 7. Bg2 {[%emt 0:01:26]} d5 {[%emt 0:00:59]} 8. cxd5 {[%emt 0:06:17]} exd5 {[%emt 0:00:25]} 9. O-O {[%emt 0:04:38]} O-O {[%emt 0:01:13]} 10. Nc3 {[%emt 0:06:13]} Bb7 {[%emt 0:03:51]} 11. Bf4 {[%emt 0:03:19]} Re8 {[%emt 0:03:49]} 12. Rc1 {[%emt 0:02:55]} Na6 {[%emt 0:01:47]} 13. Rc2 {[%emt 0:03:58]} h6 {[%emt 0:01:46]} 14. Qc1 {[%emt 0:07:12]} Bf8 {[%emt 0:02:21]} 15. Qb2 {[%emt 0:03:37]} c5 {[%emt 0:01:23]} 16. Rd1 {[%emt 0:04:38]} Qe7 {[%emt 0:10:30]} 17. h4 {[%emt 0:13:16]} g6 {[%emt 0:06:25]} 18. e3 {[%emt 0:10:13]} Ne4 {[%emt 0:21:00]} 19. g4 {[%emt 0:17:25]} Rad8 {[%emt 0:05:03]} 20. g5 {[%emt 0:02:06]} hxg5 {[%emt 0:04:00]} 21. hxg5 {[%emt 0:01:11]} Bg7 {[%emt 0:01:47]} 22. Rcc1 {[%emt 0:03:38]} Nc7 {[%emt 0:03:25]} 23. Qb1 {[%emt 0:03:57]} Ne6 {[%emt 0:03:24]} 24. Be5 {[%emt 0:02:35]} Bxe5 {[%emt 0:03:03]} 25. dxe5 {[%emt 0:00:44]} Nxc3 {[%emt 0:01:17]} 26. Rxc3 {[%emt 0:00:06]} d4 {[%emt 0:00:42]} 27. exd4 {[%emt 0:00:41]} cxd4 {[%emt 0:00:44]} 28. Rc4 {[%emt 0:00:47]} Nf4 {[%emt 0:05:07]} 0-1

[Event "CZE Extraliga 2019-20"]
[Site "Czech Republic"]
[Date "2019.11.30"]
[Round "3.6"]
[White "Obsivac, Josef"]
[Black "Kislinsky, Alexey"]
[Result "0-1"]
[ECO "E90"]
[WhiteElo "2285"]
[BlackElo "2436"]
[Annotator "NA"]
[PlyCount "126"]
[EventDate "2019.09.15"]
[EventType "team-tourn"]
[EventCountry "CZE"]
[SourceTitle "playchess.com"]
[Source "ChessBase"]
[SourceQuality "1"]
[WhiteTeam "Brno"]
[BlackTeam "Lysa nad Labem"]
[TimeControl "40/5400+30:1800+30"]

1. d4 {[%emt 0:00:00]} Nf6 {[%emt 0:00:00]} 2. c4 {[%emt 0:00:00]} g6 {[%emt 0:00:49]} 3. Nc3 {[%emt 0:00:02]} c5 {[%emt 0:00:28]} 4. d5 {[%emt 0:00:45]} Bg7 {[%emt 0:00:08]} 5. e4 {[%emt 0:01:21]} d6 {[%emt 0:00:09]} 6. Bd3 {[%emt 0:05:12]} O-O {[%emt 0:00:12]} 7. h3 {[%emt 0:02:57]} e6 {[%emt 0:00:00]} 8. Nf3 {[%emt 0:00:57]} Nbd7 {[%emt 0:00:06]} 9. O-O e5 10. a3 {[%emt 0:06:55] E90: King's Indian: Classical: Early deviations and 6 h3} (10. Rb1 h6 11. Re1 Nh7 12. Qc2 Kh8 13. Bd2 b6 14. b4 cxb4 15. Nb5 Nc5 16. Bxb4 f5 17. Rbd1 f4 {0-1 (68) Le,Q (2739)-Aronian,L (2799) Saint Louis 2017}) 10... h6 {[%emt 0:07:54]} 11. Re1 {[%emt 0:07:11]} Nh7 {[%emt 0:01:04]} 12. Rb1 $146 {[%emt 0:04:06]} ({Predecessor:} 12. Qc2 Nb8 13. b4 Na6 14. Rb1 f5 15. Kf1 f4 {0-1 (47) Johansson,R (2095)-Janse,L (2152) Stockholm 2003}) 12... f5 {[%emt 0:02:05]} 13. b4 {[%emt 0:00:50]} f4 {[%emt 0:01:55]} 14. Nb5 {[%emt 0:09:13]} Rf6 {[%emt 0:00:54]} 15. g4 {[%emt 0:06:31]} (15. Qe2 $14) 15... fxg3 {[%emt 0:11:14]} 16. fxg3 {[%emt 0:00:05]} a5 {[%emt 0:02:33]} 17. bxa5 {[%emt 0:08:03]} Qxa5 {[%emt 0:03:35]} 18. Bd2 {[%emt 0:03:40]} (18. Nh2 $16) 18... Qd8 {[%emt 0:00:26]} 19. Bf1 {[%emt 0:03:37]} Nb6 {[%emt 0:01:33]} 20. Rb3 {[%emt 0:02:37]} Bd7 {[%emt 0:03:35]} 21. Qc1 {[%emt 0:12:34]} Ra4 {[%emt 0:05:28]} 22. Nh2 {[%emt 0:05:53]} h5 {[%emt 0:08:30]} 23. g4 {[%emt 0:07:05]} hxg4 {[%emt 0:07:42]} 24. Nxg4 {[%emt 0:02:01]} Bxg4 {[%emt 0:00:42]} 25. hxg4 {[%emt 0:00:05]} Qd7 {[%emt 0:01:30]} 26. Rg3 $11 {[%emt 0:02:32]} Rf4 {[%emt 0:10:13]} 27. g5 {[%emt 0:01:50]} Rxf1+ {[%emt 0:07:22]} 28. Rxf1 {[%emt 0:00:10]} Nxc4 {[%emt 0:00:16]} 29. Nc3 {[%emt 0:02:55]} Rxa3 {[%emt 0:00:09]} 30. Be1 {[%emt 0:02:40]} b5 {[%emt 0:00:31]} 31. Qd1 {[%emt 0:01:16]} b4 {[%emt 0:00:27]} 32. Qe2 {[%emt 0:00:45]} Nb6 {[%emt 0:02:52]} 33. Rff3 {[%emt 0:01:02]} bxc3 {[%emt 0:00:22]} 34. Rxc3 {[%emt 0:00:02]} Rxc3 {[%emt 0:01:38]} 35. Bxc3 {[%emt 0:00:03]} Bf8 {[%emt 0:01:18]} 36. Qa6 {[%emt 0:00:48]} Nc8 {[%emt 0:01:30]} 37. Bd2 {[%emt 0:00:31]} Be7 {[%emt 0:01:03]} 38. Kf1 {[%emt 0:01:03]} Nf8 {[%emt 0:05:25]} 39. Ke1 {[%emt 0:00:35]} Bd8 {[%emt 0:02:56]} 40. Kd1 {[%emt 0:00:56]} Nb6 {[%emt 0:02:02]} 41. Ke1 {[%emt 0:13:35]} Qh7 {[%emt 0:01:17]} 42. Qe2 {[%emt 0:04:50]} Qh4 {[%emt 0:01:27]} 43. Kf2 {[%emt 0:00:30]} Nh7 {[%emt 0:01:14]} 44. Kg2 {[%emt 0:01:34]} Nxg5 {[%emt 0:04:15]} 45. Bxg5 {[%emt 0:03:20]} Bxg5 {[%emt 0:00:05]} 46. Qg4 {[%emt 0:08:32]} Qxg4 {[%emt 0:00:19]} 47. Rxg4 {[%emt 0:00:01]} Be7 {[%emt 0:00:40]} 48. Rxg6+ {[%emt 0:00:02]} Kf7 {[%emt 0:00:08]} 49. Rh6 {[%emt 0:00:43]} Bf8 {[%emt 0:01:34]} 50. Rh7+ {[%emt 0:00:32]} Bg7 {[%emt 0:00:06]} 51. Kf3 {[%emt 0:00:29]} Nd7 {[%emt 0:01:55]} 52. Rh1 {[%emt 0:00:39]} Nf6 {[%emt 0:00:25]} 53. Rb1 {[%emt 0:00:20]} Bh6 {[%emt 0:00:56]} 54. Rb7+ {[%emt 0:00:22]} Ke8 {[%emt 0:00:13]} 55. Rc7 {[%emt 0:00:59]} Kd8 {[%emt 0:01:42]} 56. Rf7 {[%emt 0:00:25]} Bg5 {[%emt 0:03:08]} 57. Rg7 {[%emt 0:00:15]} Bf4 {[%emt 0:01:05]} 58. Rf7 {[%emt 0:01:09]} Nd7 {[%emt 0:00:19]} 59. Rg7 {[%emt 0:00:52]} c4 {[%emt 0:00:18]} 60. Rg2 {[%emt 0:00:20]} c3 {[%emt 0:00:12]} 61. Ra2 {[%emt 0:01:13]} Nc5 {[%emt 0:00:48]} 62. Ke2 {[%emt 0:00:51]} Kc7 {[%emt 0:00:07]} 63. Kd1 {[%emt 0:00:24]} Bd2 {[%emt 0:00:53]} 0-1

[Event "CZE Extraliga 2019-20"]
[Site "Czech Republic"]
[Date "2019.12.02"]
[Round "3.7"]
[White "Nguyen, Thai Dai Van"]
[Black "Vyskocil, Neklan"]
[Result "1-0"]
[ECO "E32"]
[WhiteElo "2548"]
[BlackElo "2291"]
[Annotator "ChessBase"]
[PlyCount "63"]
[EventDate "2019.09.15"]
[EventType "team-tourn"]
[EventCountry "CZE"]
[SourceTitle "playchess.com"]
[Source "ChessBase"]
[SourceQuality "1"]
[WhiteTeam "Novoborsky"]
[BlackTeam "Duras"]
[WhiteTeamCountry "CZE"]
[BlackTeamCountry "CZE"]
[TimeControl "40/5400+30:1800+30"]

1. d4 {[%emt 0:00:00]} Nf6 {[%emt 0:00:00]} 2. c4 {[%emt 0:00:00]} e6 {[%emt 0:00:00]} 3. Nc3 {[%emt 0:00:00]} Bb4 {[%emt 0:00:43]} 4. Qc2 {[%emt 0:00:00]} O-O {[%emt 0:00:48]} 5. e4 {[%emt 0:00:03]} d6 {[%emt 0:01:22]} 6. e5 {[%emt 0:00:21]} Nfd7 {[%emt 0:06:25]} 7. Nf3 {[%emt 0:20:08]} f5 {[%emt 0:36:52]} 8. exf6 {[%emt 0:18:22]} Nxf6 {[%emt 0:01:22]} 9. Bd3 {[%emt 0:00:04]} Qe7 {[%emt 0:07:45]} 10. O-O {[%emt 0:00:20]} Bxc3 {[%emt 0:07:15]} 11. Qxc3 {[%emt 0:11:39]} Nc6 {[%emt 0:03:09]} 12. Re1 {[%emt 0:03:33]} Bd7 {[%emt 0:04:25]} 13. d5 {[%emt 0:03:37]} Nd8 {[%emt 0:01:30]} 14. dxe6 {[%emt 0:03:06]} Bxe6 {[%emt 0:07:47]} 15. Ng5 {[%emt 0:02:33]} Re8 {[%emt 0:05:58]} 16. Bf5 {[%emt 0:07:51]} Bxf5 {[%emt 0:00:29]} 17. Rxe7 {[%emt 0:00:00]} Rxe7 {[%emt 0:00:02]} 18. Be3 {[%emt 0:00:12]} h6 {[%emt 0:03:40]} 19. Nf3 {[%emt 0:00:07]} b6 {[%emt 0:02:18]} 20. Bxh6 {[%emt 0:02:05]} Nf7 {[%emt 0:03:39]} 21. Be3 {[%emt 0:01:03]} Rae8 {[%emt 0:01:14]} 22. h3 {[%emt 0:04:00]} c5 {[%emt 0:02:10]} 23. Rd1 {[%emt 0:01:51]} Be4 {[%emt 0:00:26]} 24. Ng5 {[%emt 0:12:32]} d5 {[%emt 0:00:05]} 25. cxd5 {[%emt 0:00:23]} Nxd5 {[%emt 0:00:34]} 26. Qc4 {[%emt 0:01:03]} Nd6 {[%emt 0:02:26]} 27. Qe2 {[%emt 0:02:36]} Nf5 {[%emt 0:00:31]} 28. Qc4 {[%emt 0:01:50]} Nd6 {[%emt 0:00:10]} 29. Qb3 {[%emt 0:01:45]} c4 {[%emt 0:00:29]} 30. Qa3 {[%emt 0:00:31]} Nb5 {[%emt 0:01:05]} 31. Qa4 {[%emt 0:00:00]} Nxe3 {[%emt 0:00:11]} 32. fxe3 {[%emt 0:00:02]} 1-0

[Event "CZE Extraliga 2019-20"]
[Site "Czech Republic"]
[Date "2019.11.30"]
[Round "3.7"]
[White "Voloshin, Leonid"]
[Black "Jirovsky, Milos"]
[Result "1/2-1/2"]
[ECO "D10"]
[WhiteElo "2361"]
[BlackElo "2452"]
[Annotator "ChessBase"]
[PlyCount "33"]
[EventDate "2019.09.15"]
[EventType "team-tourn"]
[EventCountry "CZE"]
[SourceTitle "playchess.com"]
[Source "ChessBase"]
[SourceQuality "1"]
[WhiteTeam "Praha"]
[BlackTeam "Pardubice"]
[TimeControl "40/5400+30:1800+30"]

1. d4 {[%emt 0:00:00]} d5 {[%emt 0:00:00]} 2. c4 {[%emt 0:00:13]} c6 {[%emt 0:00:13]} 3. cxd5 {[%emt 0:04:22]} cxd5 {[%emt 0:00:45]} 4. Nc3 {[%emt 0:00:07]} Nf6 {[%emt 0:00:53]} 5. Bf4 {[%emt 0:00:35]} a6 {[%emt 0:01:18]} 6. e3 {[%emt 0:03:17]} Nc6 {[%emt 0:00:14]} 7. Nf3 {[%emt 0:00:13]} Bg4 {[%emt 0:00:31]} 8. Be2 {[%emt 0:04:18]} e6 {[%emt 0:00:27]} 9. O-O {[%emt 0:03:01]} Be7 {[%emt 0:02:55]} 10. h3 {[%emt 0:02:58]} Bxf3 {[%emt 0:00:20]} 11. Bxf3 {[%emt 0:00:08]} O-O {[%emt 0:00:11]} 12. Be2 {[%emt 0:00:27]} b5 {[%emt 0:04:33]} 13. Bd3 {[%emt 0:03:46]} Qb6 {[%emt 0:04:49]} 14. Qe2 {[%emt 0:02:00]} Rfc8 {[%emt 0:02:51]} 15. Rfc1 {[%emt 0:01:46]} Qd8 {[%emt 0:01:03]} 16. Bh2 {[%emt 0:05:06]} Bd6 {[%emt 0:00:15]} 17. Bxd6 1/2-1/2

[Event "CZE Extraliga 2019-20"]
[Site "Czech Republic"]
[Date "2019.11.30"]
[Round "3.7"]
[White "Konopka, Michal"]
[Black "Bures, Jaroslav"]
[Result "0-1"]
[ECO "D78"]
[WhiteElo "2351"]
[BlackElo "2388"]
[Annotator "NA"]
[PlyCount "74"]
[EventDate "2019.09.15"]
[EventType "team-tourn"]
[EventCountry "CZE"]
[SourceTitle "playchess.com"]
[Source "ChessBase"]
[SourceQuality "1"]
[WhiteTeam "Kromeriz"]
[BlackTeam "Poruba"]
[TimeControl "40/5400+30:1800+30"]

1. Nf3 {[%emt 0:00:00]} d5 {[%emt 0:00:00]} 2. g3 {[%emt 0:00:16]} g6 {[%emt 0:00:20]} 3. Bg2 {[%emt 0:01:20]} Bg7 {[%emt 0:00:06]} 4. d4 {[%emt 0:00:17]} Nf6 {[%emt 0:00:06]} 5. O-O {[%emt 0:00:44]} O-O {[%emt 0:00:05]} 6. c4 {[%emt 0:00:13]} c6 {[%emt 0:00:04]} 7. Qb3 {[%emt 0:03:37]} a5 {[%emt 0:00:08]} 8. cxd5 {[%emt 0:04:47]} a4 {[%emt 0:00:04]} 9. Qd1 {[%emt 0:00:11]} cxd5 {[%emt 0:00:05]} 10. Nc3 {[%emt 0:00:09]} Qa5 {[%emt 0:00:03]} 11. Bd2 {[%emt 0:02:00]} Nc6 {[%emt 0:01:08]} 12. e3 {[%emt 0:04:02]} a3 {[%emt 0:05:39]} 13. b3 Bg4 {[%emt 0:00:03]} 14. h3 {[%emt 0:20:57]} Bxf3 {[%emt 0:00:10]} 15. Bxf3 {[%emt 0:00:23]} Qd8 {[%emt 0:00:03]} 16. Qe2 {[%emt 0:11:19]} e5 {[%emt 0:04:46]} 17. dxe5 {[%emt 0:02:29]} Nxe5 {[%emt 0:00:04]} 18. Bg2 {[%emt 0:02:24]} Re8 {[%emt 0:00:05]} 19. Rfd1 {[%emt 0:03:48]} d4 {[%emt 0:02:01]} 20. exd4 {[%emt 0:10:53]} Qxd4 {[%emt 0:00:06]} 21. Be1 {[%emt 0:02:04]} Qa7 {[%emt 0:05:14]} 22. Rac1 {[%emt 0:10:14]} Nh5 {[%emt 0:17:45]} 23. Kh2 {[%emt 0:07:54]} Nc6 {[%emt 0:00:03]} 24. Qf3 {[%emt 0:05:59]} Re6 {[%emt 0:14:07]} 25. Nd5 {[%emt 0:02:23]} Bb2 {[%emt 0:07:13]} 26. Rb1 {[%emt 0:00:13]} Ne5 {[%emt 0:06:38]} 27. Qe2 {[%emt 0:01:06]} Rc8 {[%emt 0:01:13]} 28. f4 {[%emt 0:03:08]} Nc6 {[%emt 0:05:47]} 29. Qc2 {[%emt 0:00:02]} Qb8 {[%emt 0:00:53]} 30. Bc3 {[%emt 0:00:53]} Nb4 {[%emt 0:00:43]} 31. Nxb4 {[%emt 0:00:56]} Rxc3 {[%emt 0:01:04]} 32. Qd2 {[%emt 0:00:22]} Rxg3 {[%emt 0:00:19]} 33. Nd5 {[%emt 0:00:18]} g5 {[%emt 0:14:23]} 34. Re1 {[%emt 0:00:25]} gxf4 {[%emt 0:04:28]} 35. Rxe6 {[%emt 0:00:42]} f3 {[%emt 0:03:37]} 36. Ne7+ {[%emt 0:00:52]} Kh8 {[%emt 0:00:54]} 37. Bxf3 {[%emt 0:00:33]} fxe6 {[%emt 0:01:50]} 0-1

[Event "CZE Extraliga 2019-20"]
[Site "Czech Republic"]
[Date "2019.11.30"]
[Round "3.7"]
[White "Balacek, Tadeas"]
[Black "Zeman, Matyas"]
[Result "1/2-1/2"]
[ECO "D05"]
[WhiteElo "2331"]
[BlackElo "2247"]
[Annotator "NA"]
[PlyCount "120"]
[EventDate "2019.09.15"]
[EventType "team-tourn"]
[EventCountry "CZE"]
[SourceTitle "playchess.com"]
[Source "ChessBase"]
[SourceQuality "1"]
[WhiteTeam "Lysa nad Labem"]
[BlackTeam "Brno"]
[TimeControl "40/5400+30:1800+30"]

1. d4 d5 2. Nf3 e6 3. e3 Nf6 4. c4 a6 5. Nbd2 Nbd7 6. b3 Be7 7. Bd3 c5 8. O-O cxd4 9. exd4 O-O 10. Bb2 b6 11. Qe2 Bb7 12. Rac1 dxc4 13. bxc4 b5 14. c5 Bd5 15. a4 bxa4 16. Ra1 Bc6 17. Nc4 $11 Nd5 18. Nfe5 Nxe5 19. Nxe5 Bb5 20. Bxb5 axb5 21. Qxb5 Qb8 22. Qe2 Qc7 23. Nc4 Rfb8 24. Qc2 Qc6 25. Ne5 Qa6 26. Ba3 Rb3 27. Rfb1 Qb5 28. Rxb3 axb3 29. Qc4 Qxc4 30. Nxc4 Ra4 31. Nd2 Rxd4 32. Nxb3 Ra4 33. Nd2 Bf6 34. Rb1 g6 35. Bb2 Bxb2 36. Rxb2 Ra1+ 37. Rb1 Rxb1+ 38. Nxb1 Kf8 39. Nd2 Ke7 40. Kf1 Nc3 41. Nc4 f6 42. Nb6 Ne4 43. Na4 Kd7 44. f3 Nd2+ 45. Ke2 Nb3 46. Kd3 Kc6 47. Kc4 Na5+ 48. Kb4 Nb7 49. Kc4 e5 50. g4 h5 51. gxh5 gxh5 52. h4 f5 53. Nc3 Nxc5 54. Nd5 e4 55. Ne7+ Kd6 56. Nxf5+ Ke5 57. fxe4 Nxe4 58. Ng7 Nd2+ 59. Kd3 Nf3 60. Nxh5 Nxh4 {Ke4+} 1/2-1/2

[Event "CZE Extraliga 2019-20"]
[Site "Czech Republic"]
[Date "2019.11.30"]
[Round "3.7"]
[White "Jasny, Stanislav"]
[Black "Walek, Petr"]
[Result "1/2-1/2"]
[ECO "B34"]
[WhiteElo "2326"]
[BlackElo "2263"]
[Annotator "NA"]
[PlyCount "138"]
[EventDate "2019.09.15"]
[EventType "team-tourn"]
[EventCountry "CZE"]
[SourceTitle "playchess.com"]
[Source "ChessBase"]
[SourceQuality "1"]
[WhiteTeam "Frydek-Mistek"]
[BlackTeam "Ostrava"]
[TimeControl "40/5400+30:1800+30"]

1. e4 {[%emt 0:00:00]} c5 {[%emt 0:00:42]} 2. Nf3 {[%emt 0:00:00]} g6 {[%emt 0:00:09]} 3. d4 {[%emt 0:00:18]} cxd4 {[%emt 0:00:05]} 4. Nxd4 {[%emt 0:00:07]} Bg7 {[%emt 0:00:07]} 5. Nb3 {[%emt 0:00:22]} Nc6 {[%emt 0:01:33]} 6. Be2 {[%emt 0:00:20]} Nf6 {[%emt 0:08:47]} 7. Nc3 {[%emt 0:00:09]} O-O {[%emt 0:00:47]} 8. O-O {[%emt 0:00:10]} a6 {[%emt 0:02:29]} 9. Be3 $11 {[%emt 0:10:05]} b5 {[%emt 0:03:15]} 10. Nd5 {[%emt 0:03:32]} Rb8 {[%emt 0:17:35]} 11. f3 {[%emt 0:01:55]} d6 {[%emt 0:04:22]} 12. Qd2 {[%emt 0:12:51]} Re8 {[%emt 0:14:52]} 13. Rad1 {[%emt 0:05:28]} a5 {[%emt 0:04:53]} 14. Nd4 {[%emt 0:15:31]} Nxd4 {[%emt 0:01:18]} 15. Bxd4 {[%emt 0:00:08]} Nxd5 {[%emt 0:00:21]} 16. Bxg7 {[%emt 0:00:12]} Kxg7 {[%emt 0:01:08]} 17. exd5 {[%emt 0:00:45]} Qb6+ {[%emt 0:02:17]} 18. Kh1 {[%emt 0:00:14]} Bf5 {[%emt 0:09:33]} 19. g4 {[%emt 0:09:54]} Bd7 {[%emt 0:00:38]} 20. f4 {[%emt 0:00:09]} f5 {[%emt 0:03:05]} 21. g5 {[%emt 0:02:41]} e5 {[%emt 0:04:42]} 22. dxe6 {[%emt 0:00:08]} Bc6+ {[%emt 0:00:15]} 23. Bf3 {[%emt 0:00:13]} Bxf3+ {[%emt 0:00:11]} 24. Rxf3 {[%emt 0:00:07]} Rxe6 {[%emt 0:00:07]} 25. Qc3+ {[%emt 0:09:16]} Kf7 {[%emt 0:01:15]} 26. Rh3 {[%emt 0:00:56]} Qb7+ {[%emt 0:00:55]} 27. Kg1 {[%emt 0:00:13]} Kg8 {[%emt 0:00:35]} 28. Qb3 {[%emt 0:07:32]} Qf7 {[%emt 0:09:38]} 29. Rhd3 {[%emt 0:04:12]} a4 {[%emt 0:01:43]} 30. Qb4 {[%emt 0:02:06]} Qa7+ {[%emt 0:01:41]} 31. Qd4 {[%emt 0:01:12]} Qxd4+ {[%emt 0:01:26]} 32. Rxd4 {[%emt 0:00:05]} Re2 {[%emt 0:01:51]} 33. R1d2 {[%emt 0:00:12]} Rxd2 {[%emt 0:00:30]} 34. Rxd2 {[%emt 0:00:07]} Rc8 35. Kf2 {[%emt 0:05:51]} a3 {[%emt 0:02:51]} 36. bxa3 {[%emt 0:00:16]} Rc3 {[%emt 0:00:39]} 37. Rxd6 {[%emt 0:00:28]} Rxc2+ {[%emt 0:00:18]} 38. Ke3 {[%emt 0:00:58]} Rxa2 {[%emt 0:01:17]} 39. Kd4 {[%emt 0:00:30]} Rxa3 {[%emt 0:00:44]} 40. Ke5 {[%emt 0:02:11]} Ra8 {[%emt 0:00:00]} 41. Rb6 Re8+ 42. Kf6 {[%emt 0:01:50]} Rf8+ {[%emt 0:10:21]} 43. Ke7 {[%emt 0:00:21]} Ra8 44. Rxb5 {[%emt 0:01:19]} Ra7+ {[%emt 0:02:32]} 45. Kf6 {[%emt 0:00:20]} Ra6+ {[%emt 0:00:13]} 46. Ke5 {[%emt 0:13:27]} Ra7 47. Rc5 {[%emt 0:00:12]} Kf7 {[%emt 0:10:51]} 48. Kd6 {[%emt 0:00:30]} Re7 {[%emt 0:01:20]} 49. Rc7 {[%emt 0:13:10]} Rxc7 {[%emt 0:00:05]} 50. Kxc7 {[%emt 0:00:05]} Ke7 {[%emt 0:00:26]} 51. Kc6 {[%emt 0:00:31]} Ke6 {[%emt 0:01:08]} 52. Kc5 {[%emt 0:00:00]} Kd7 {[%emt 0:01:26]} 53. Kd5 {[%emt 0:00:22]} Ke7 {[%emt 0:00:09]} 54. Ke5 {[%emt 0:00:05]} Kf7 {[%emt 0:00:27]} 55. Kd6 Kf8 {[%emt 0:02:02]} 56. Ke6 {[%emt 0:00:20]} Kg7 {[%emt 0:00:10]} 57. Ke7 {[%emt 0:10:30]} Kg8 {[%emt 0:00:30]} 58. Kf6 {[%emt 0:00:07]} Kf8 {[%emt 0:00:07]} 59. h4 {[%emt 0:01:27]} Kg8 {[%emt 0:00:10]} 60. h5 {[%emt 0:00:30]} gxh5 {[%emt 0:00:06]} 61. Kxf5 {[%emt 0:00:14]} Kf7 {[%emt 0:00:29]} 62. Ke4 {[%emt 0:00:32]} Kg6 {[%emt 0:01:39]} 63. Ke5 {[%emt 0:01:47]} h4 {[%emt 0:01:05]} 64. f5+ {[%emt 0:00:33]} Kxg5 {[%emt 0:00:21]} 65. f6 {[%emt 0:00:05]} Kg6 {[%emt 0:00:22]} 66. Ke6 {[%emt 0:00:06]} h3 {[%emt 0:00:20]} 67. f7 {[%emt 0:00:04]} h2 {[%emt 0:00:12]} 68. f8=Q {[%emt 0:00:06]} h1=Q {[%emt 0:00:19]} 69. Qf5+ {[%emt 0:01:24]} Kh6 {[%emt 0:00:16]} 1/2-1/2